Cogmind - Beta 14 @@@ ROGUE MODE // 2024.11.14 @ 11:44:50 Player: BEEEEES Result: Destroyed by Y-45 Defender with Beam Rifle Performance ------------- Evolutions (2) 1000 Regions Visited (5) 1000 Robots Destroyed (20) 100 Value Destroyed (656) 656 Prototype IDs (1) 20 Alien Tech Used (0) 0 Bonus (0) 0 TOTAL SCORE: 2776 Bonus ------- None Cogmind --------- Core Integrity 0/550 Matter 275/300 Energy 93/250 System Corruption 0% Temperature Cool (9) Movement Core (800) Ox15 Location -8/Materials Parts ------- > --- POWER (1) -------- Ion Engine > --- PROPULSION (3) --- (None) > --- UTILITY (5) ------ High-capacity Storage Unit Sensor Array Terrain Scan Processor > --- WEAPON (2) ------- (None) > --- INVENTORY (20) --- Light Ion Engine Small Storage Unit Small Matter Pod (50) Structural Scanner Sensor Array Improved Sensor Array Peak State ------------ > --- POWER ------------ Ion Engine > --- PROPULSION ------- Aluminum Leg Aluminum Leg > --- UTILITY ---------- Improved Heat Sink High-capacity Storage Unit High-capacity Matter Pod Terrain Scanner Terrain Scan Processor > --- WEAPON ----------- Precision Beam Rifle Mining Laser > --- INVENTORY -------- Ion Engine Light Ion Engine Light Ion Engine Light Treads Small Storage Unit Small Matter Pod Structural Scanner Sensor Array Sensor Array Light Assault Rifle Grenade Launcher [Rating: 17] Favorites ----------- Power Ion Engine Engine Ion Engine Propulsion Light Treads Treads Light Treads Leg Aluminum Leg Utility High-capacity Matter Pod Device Improved Heat Sink Storage High-capacity Matter Pod Processor Terrain Scan Processor Weapon Light Assault Rifle Energy Gun Medium Laser Ballistic Gun Light Assault Rifle Launcher Grenade Launcher Special Weapon Mining Laser Build | -11 -10 -10 -10 -9 -8 ------- Run | Yrd Mat Min Exi Min Mat Slots Evolved 4 | . . . . . 4 Power . | . . . . . . Propulsion 1 | . . . . . 1 Utility 3 | . . . . . 3 Weapon . | . . . . . . Parts Attached 33 | 6 8 1 . 3 15 Power 7 | 1 2 1 . . 3 Engine 7 | 1 2 1 . . 3 Core . | . . . . . . Reactor . | . . . . . . Propulsion 9 | 2 2 . . 2 3 Treads 4 | . 2 . . . 2 Leg 5 | 2 . . . 2 1 Wheel . | . . . . . . Hover . | . . . . . . Flight . | . . . . . . Utility 9 | 1 3 . . . 5 Device 4 | . . . . . 4 Storage 4 | 1 3 . . . . Processor 1 | . . . . . 1 Hackware . | . . . . . . Protection . | . . . . . . Artifact . | . . . . . . Weapon 8 | 2 1 . . 1 4 Energy Gun 2 | 1 . . . . 1 Energy Cannon . | . . . . . . Ballistic Gun 4 | 1 1 . . . 2 Ballistic Cannon . | . . . . . . Launcher 1 | . . . . . 1 Special Weapon 1 | . . . . 1 . Impact Weapon . | . . . . . . Slashing Weapon . | . . . . . . Piercing Weapon . | . . . . . . Special Melee Weapon . | . . . . . . Unidentified Prototypes 1 | . . . . . 1 Parts Lost 12 | . 1 1 . . 10 Power 4 | . 1 1 . . 2 Propulsion 2 | . . . . . 2 Utility 3 | . . . . . 3 Weapon 3 | . . . . . 3 Highest Loss Streak 8 | . 1 1 . . 8 To Critical Strikes . | . . . . . . Average Slot Usage (%) 96 | . 98 94 100 99 77 Engine 12 | . 13 9 14 14 6 Treads 19 | . 3 28 28 6 3 Leg 6 | . 24 . . 21 9 Device 1 | . . . . . 17 Storage 27 | . 28 28 28 28 17 Energy Gun 13 | . 14 14 14 13 4 Ballistic Gun 13 | . 13 14 14 14 6 Peak Build Rating 17 | 6 8 8 8 9 17 Average Rating 8 | 4 7 7 8 7 14 On Entrance 6 | . 6 8 8 8 8 Naked Turns . | . . . . . . Heaviest Build 56 | 13 52 52 52 52 56 Greatest Support 40 | 20 40 40 40 40 20 Greatest Overweight (x) 17 | . 2 1 1 2 17 Average Overweight (x) 1 | . 1 1 1 1 2 Largest Inventory Capacity 20 | 8 20 20 20 20 20 Average Capacity 19 | 6 17 20 20 20 20 Most Carried 17 | 3 10 16 16 17 14 Average Carried 12 | 1 7 12 16 15 10 Final Capacity 20 | 8 20 20 20 20 20 Final Carried 16 | 3 8 16 16 15 6 Class Distribution -------------------- 94% | Mutant 5% | Scavenger-Mutant Dominant Class ---------------- Mutant | -10/Materials Mutant | -10/Mines Mutant | -10/Exiles Mutant | -9/Mines Scavenger-Mutant | -8/Materials Resources | -11 -10 -10 -10 -9 -8 ----------- Run | Yrd Mat Min Exi Min Mat Matter Collected 819 | 254 257 139 . 73 96 Remotely . | . . . . . . Salvage Created 688 | . 257 214 . 92 125 Parts 43 | . 14 20 . 3 6 Haulers Intercepted . | . . . . . . Recyclers Shooed 2 | . . 1 . . 1 Parts Field Recycled . | . . . . . . Retrieved Matter . | . . . . . . Parts Self-Destructed . | . . . . . . Prevented . | . . . . . . Kills | -11 -10 -10 -10 -9 -8 ------- Run | Yrd Mat Min Exi Min Mat Combat Hostiles Destroyed 17 | . 5 7 . 2 3 Guns 14 | . 5 6 . 2 1 AOE 2 | . . . . . 2 Classes Destroyed 6 | . 2 2 . . 2 Builder 1 | . . 1 . . . Mechanic 1 | . 1 . . . . Watcher 1 | . . . . . 1 Swarmer 3 | . . 3 . . . Grunt 12 | . 5 4 . 2 1 Hunter 2 | . . . . . 2 Best Kill Streak 3 | . 2 3 . 2 2 Combat Bots Only 3 | . 2 3 . 2 2 Max Kills in Single Turn 1 | . 1 1 . 1 1 Gunslinging . | . . . . . . Exploded 1 | . . . . . 1 Melee . | . . . . . . Uniques/NPCs Destroyed . | . . . . . . Combat | -11 -10 -10 -10 -9 -8 -------- Run | Yrd Mat Min Exi Min Mat Hostile Shots Fired 223 | . 41 40 . 9 133 Missed 71 | . 16 9 . 2 44 Damage Taken 2132 | . 302 396 . 95 1339 Core 661 | . 48 52 . 11 550 Absorbed by Shields . | . . . . . . Regen/Repaired (Parts) 60 | . 60 . . . . Core Remaining (%) 77 | 100 . . . 55 . Volleys Fired 72 | . 27 27 . 7 11 Largest 2 | . 2 2 . 2 2 Hottest 161 | . 70 70 . 70 161 Shots Fired 139 | . 54 53 . 14 18 Gun 135 | . 54 53 . 14 14 Cannon . | . . . . . . Launcher 3 | . . . . . 3 Special 1 | . . . . . 1 Kinetic 68 | . 27 27 . 7 7 Thermal 68 | . 27 26 . 7 8 Explosive 3 | . . . . . 3 Electromagnetic . | . . . . . . Robot Hit Streak 10 | . 9 6 . 10 9 Robot Miss Streak 6 | . 6 3 . 1 2 Penetration Max . | . . . . . . Secondary Targets 1 | . . 1 . . . Max Gunslinging Chain 1 | . . 1 . . . Shots Hit Robots 89 | . 32 33 . 11 13 Core Hits 44 | . 13 16 . 5 10 Critical Kills . | . . . . . . Critical Parts Destroyed . | . . . . . . Critical Strikes 4 | . . 1 . 2 1 Burn 4 | . . 1 . 2 1 Melee Attacks . | . . . . . . Impact . | . . . . . . Slashing . | . . . . . . Piercing . | . . . . . . Sneak Attacks . | . . . . . . Combat Hostiles . | . . . . . . Follow-up Attacks . | . . . . . . Damage Inflicted 1213 | . 359 365 . 123 366 Guns 927 | . 348 331 . 120 128 Cannons . | . . . . . . Explosions 214 | . . . . . 214 Melee . | . . . . . . Ramming 48 | . 11 34 . 3 . Kinetic 336 | . 124 142 . 44 26 Thermal 615 | . 224 189 . 76 126 Explosive 214 | . . . . . 214 Electromagnetic . | . . . . . . Impact . | . . . . . . Slashing . | . . . . . . Piercing . | . . . . . . Highest Corruption 1 | . 1 1 1 1 . Average Corruption 1 | . 1 1 1 1 . Corruption Purged . | . . . . . . Corruption Blocked . | . . . . . . Effects 25 | . 1 8 14 2 . Message Errors 6 | . . 1 4 1 . Matter Fused 8 | . 1 1 6 . . Heat Flow Errors 3 | . . 1 1 1 . Parts Fused 1 | . . . 1 . . Data Loss (minor) 3 | . . 2 1 . . Data Loss (major) 1 | . . . 1 . . Misfires 1 | . . 1 . . . Weapon Failures 2 | . . 2 . . . Overload Shots . | . . . . . . Overflow Damage 1 | . . . . . 1 Projectiles . | . . . . . . Explosions 1 | . . . . . 1 Melee . | . . . . . . Knockbacks 1 | . . . . 1 . Impact 1 | . . . . 1 . Kinetic . | . . . . . . Secondary . | . . . . . . Self-Inflicted Damage 49 | . . . . . 49 Shots 2 | . . . . . 2 Rammed 5 | . . 5 . . . Targets Rammed 9 | . 3 5 . 1 . Kicked 4 | . 3 . . 1 . Crushed . | . . . . . . Highest Temperature 275 | . 191 275 263 164 10 Average Temperature 84 | . 74 86 138 87 10 Received Heat Transfer 1014 | . 165 192 . 54 603 Siege Activations . | . . . . . . Robots Corrupted . | . . . . . . Combat Hostiles . | . . . . . . Parts Fried . | . . . . . . Impact Corruptions . | . . . . . . Robots Melted 1 | . . 1 . . . Combat Hostiles 1 | . . 1 . . . Parts Melted 5 | . 1 1 . 3 . Heat Transferred 2011 | . 666 629 . 370 346 Parts Sabotaged . | . . . . . . Parts Stolen . | . . . . . . Parts Stripped . | . . . . . . Power Chain Reactions . | . . . . . . Alert | -11 -10 -10 -10 -9 -8 ------- Run | Yrd Mat Min Exi Min Mat Peak Influence 165 | . 165 113 . 65 122 Initial 25 | . . 23 . . 25 Average 46 | . 55 34 . 54 64 Maximum Alert Level . | . . . . . . Low Security (%) 100 | 100 100 100 . 100 100 Level 1 . | . . . . . . Level 2 . | . . . . . . Level 3 . | . . . . . . Level 4 . | . . . . . . Level 5 . | . . . . . . High Security . | . . . . . . Max Security . | . . . . . . Squads Dispatched 3 | . 2 . . . 1 Investigation . | . . . . . . Extermination . | . . . . . . Reinforcement 3 | . 2 . . . 1 Assault . | . . . . . . Garrison . | . . . . . . Intercept . | . . . . . . Searches Triggered . | . . . . . . Construction Impeded . | . . . . . . Haulers Reinforced . | . . . . . . Active Scanning Responses . | . . . . . . Cargo Convoy Interrupts . | . . . . . . Stealth | -11 -10 -10 -10 -9 -8 --------- Run | Yrd Mat Min Exi Min Mat Distress Signals . | . . . . . . Communications Jammed . | . . . . . . Distress Signals . | . . . . . . Times Spotted 34 | . 13 8 . 2 11 Peak Tracking Total 4 | . 3 3 . 2 4 Tactical Retreats 2 | . 1 1 . . . Traps | -11 -10 -10 -10 -9 -8 ------- Run | Yrd Mat Min Exi Min Mat Traps Triggered 2 | . . . . . 2 Indirectly . | . . . . . . Trap Hack Attempts . | . . . . . . Triggered . | . . . . . . Disarmed . | . . . . . . Reprogrammed . | . . . . . . Reused . | . . . . . . Traps Extracted . | . . . . . . Installed . | . . . . . . Triggered . | . . . . . . Machines | -11 -10 -10 -10 -9 -8 ---------- Run | Yrd Mat Min Exi Min Mat Machines Disabled . | . . . . . . Max in Single Turn . | . . . . . . Machines Repaired . | . . . . . . Machines Dismantled . | . . . . . . Machines Sabotaged . | . . . . . . Overloaded Fab Kills . | . . . . . . Hacking | -11 -10 -10 -10 -9 -8 --------- Run | Yrd Mat Min Exi Min Mat Machines Accessed 8 | . 4 . 4 . . Terminals 3 | . 3 . . . . Fabricators . | . . . . . . Repair Stations 1 | . 1 . . . . Recycling Units . | . . . . . . Scanalyzers . | . . . . . . Garrison Access . | . . . . . . Total Hacks 15 | . 8 . 7 . . Successful 12 | . 5 . 7 . . Failed 3 | . 3 . . . . Catastrophic 1 | . 1 . . . . Database Lockouts . | . . . . . . Manual . | . . . . . . Terminals 6 | . 6 . . . . Fabricators . | . . . . . . Repair Stations 2 | . 2 . . . . Recycling Units . | . . . . . . Scanalyzers . | . . . . . . Garrison Access . | . . . . . . Terminal Hacks 10 | . 3 . 7 . . Record 7 | . . . 7 . . Alert Level 1 | . 1 . . . . Transport Status 1 | . 1 . . . . Hauler Manifests 1 | . 1 . . . . Fabricator Hacks . | . . . . . . Repair Station Hacks 2 | . 2 . . . . Scan Component 1 | . 1 . . . . Repair 1 | . 1 . . . . Recycling Unit Hacks . | . . . . . . Scanalyzer . | . . . . . . Garrison Access Hacks . | . . . . . . Unauthorized Hacks . | . . . . . . Terminals . | . . . . . . Fabricators . | . . . . . . Repair Stations . | . . . . . . Recycling Units . | . . . . . . Scanalyzers . | . . . . . . Garrison Access . | . . . . . . Data Cores Recovered . | . . . . . . Used . | . . . . . . Hacking Detections 2 | . 2 . . . . Full Trace Events 1 | . 1 . . . . Feedback Events 1 | . 1 . . . . Corruption 1 | . 1 . . . . Feedback Blocked . | . . . . . . Robot Schematics Acquired . | . . . . . . Robots Built . | . . . . . . Authchips . | . . . . . . Time . | . . . . . . Total Robot Build Rating . | . . . . . . Part Schematics Acquired . | . . . . . . Parts Built . | . . . . . . Authchips . | . . . . . . Time . | . . . . . . Total Part Build Rating . | . . . . . . Parts Repaired 1 | . 1 . . . . Time 26 | . 26 . . . . Parts Recycled . | . . . . . . Recycled Matter . | . . . . . . Retrieved Matter . | . . . . . . Retrieved Components . | . . . . . . Parts Scanalyzed . | . . . . . . Part Schematics Acquired . | . . . . . . Parts Damaged . | . . . . . . Bothacking | -11 -10 -10 -10 -9 -8 ------------ Run | Yrd Mat Min Exi Min Mat Used RIF Installer . | . . . . . . Robots Hacked . | . . . . . . Non-combat . | . . . . . . Combat . | . . . . . . Robot Hacks Applied . | . . . . . . Relay Couplers Released . | . . . . . . Fabnet Peak Effective % . | . . . . . . Robots Rewired . | . . . . . . Allies Hacked . | . . . . . . Hacks Repelled . | . . . . . . Allies | -11 -10 -10 -10 -9 -8 -------- Run | Yrd Mat Min Exi Min Mat Total Allies 1 | . . . . 1 . Largest Group 1 | . . . . 1 1 Highest-Rated Group 31 | . . . . 31 31 Highest-Rated Ally 31 | . . . . 31 31 Total Orders . | . . . . . . Ally Attacks 7 | . . . . . 7 Total Damage 104 | . . . . . 104 Kills 1 | . . . . . 1 Allies Corrupted . | . . . . . . Allies Melted . | . . . . . . Intel | -11 -10 -10 -10 -9 -8 ------- Run | Yrd Mat Min Exi Min Mat Robot Analysis Total . | . . . . . . Derelict Logs Recovered 2 | . . 2 . . . Drone Launches . | . . . . . . Drone Recoveries . | . . . . . . Exploration | -11 -10 -10 -10 -9 -8 ------------- Run | Yrd Mat Min Exi Min Mat Turns Passed 4175 | 89 716 962 1707 357 344 Spaces Moved 1669 | 69 304 361 712 129 94 Core 18 | 12 . . . . 6 Treads 1169 | . 40 361 712 26 30 Legs 482 | 57 264 . . 103 58 Wheels . | . . . . . . Hover . | . . . . . . Flight . | . . . . . . Fastest Speed 50 | 50 120 240 240 240 260 Average Speed 232 | 107 200 240 240 255 314 Slowest Speed 900 | 120 260 240 240 260 900 Overloaded Moves . | . . . . . . Propulsion Burnouts . | . . . . . . Robots Hopped . | . . . . . . Cave-ins Triggered . | . . . . . . Exploration Rate (%) 38 | 4 39 53 92 30 13 Regions Visited 5 Branch Regions 3 Pre-discovered Areas 2 | . . 2 . . . Known Exits Taken . | . . . . . . Unknown Exits Taken 5 | 1 1 1 1 1 . Scrap Searched 1 | . . 1 . . . Spaces Dug . | . . . . . . Terrain Destroyed 12 | . . . . . 12 Melee . | . . . . . . Projectile . | . . . . . . AOE 12 | . . . . . 12 Terrain Rammed . | . . . . . . Walls Destroyed . | . . . . . . Machines Disabled . | . . . . . . Actions | -11 -10 -10 -10 -9 -8 --------- Run | Yrd Mat Min Exi Min Mat Total 1831 | 83 362 402 711 144 129 Wait . | . . . . . . Move 1664 | 68 303 360 711 128 94 Hop . | . . . . . . Pick Up 38 | 9 13 9 . 2 5 Fast Attach 1 | . . . . . 1 Attach 30 | 6 6 1 . 3 14 Detach 5 | . 3 . . . 2 Swap 2 | . 2 . . . . Drop 10 | . 5 . . 3 2 Fire 72 | . 27 27 . 7 11 Melee . | . . . . . . Ram . | . . . . . . Kick 4 | . 3 . . 1 . Crush 5 | . . 5 . . . Escape Stasis . | . . . . . . Rewire . | . . . . . . Trap . | . . . . . . Miscellaneous . | . . . . . . Route ------- -11/Scrapyard -10/Materials -10/Mines -10/Exiles -9/Mines -8/Materials History --------- Turn | Location | Event 4 | -11/Scrapyard | Discovered new exit (range 15) 90 | -11/Scrapyard | Entered Materials 305 | -10/Materials | Build established: Mutant 646 | -10/Materials | Repaired Lgt. Assault Rifle 767 | -10/Materials | Discovered new exit (range 7) 806 | -10/Materials | Entered Mines 845 | -10/Mines | Learned Materials emergency access door positions 1206 | -10/Mines | Learned location of Zion (-7) 1707 | -10/Mines | Learned location of Storage (-9) 1751 | -10/Mines | Deemed a non-threat by the Exiles lab entrance 1754 | -10/Mines | Discovered new exit (range 5) 1768 | -10/Mines | Entered Exiles 1862 | -10/Exiles | Met 8R-AWN 1912 | -10/Exiles | Met EX-HEX 2030 | -10/Exiles | Met EX-DEC 2228 | -10/Exiles | Visited The Gauntlet 2697 | -10/Exiles | Discovered new exit (range 12) 2985 | -10/Exiles | Met EX-BIN 3475 | -10/Exiles | Entered Mines 3756 | -9/Mines | Discovered new exit (range 15) 3780 | -9/Mines | Received a Mining Laser from a helpful Derelict 3832 | -9/Mines | Entered Materials 3832 | -8/Materials | Accompanied by 1 ally 3832 | -8/Materials | Evolved 4 slots: Propulsion x1, Utility x3 4126 | -8/Materials | Met 7R-MNS 4159 | -8/Materials | Core integrity fell below 50% 4169 | -8/Materials | Core integrity fell below 20% 4176 | -8/Materials | Destroyed by Y-45 Defender with Beam Rifle Last Messages --------------- M-28 Smith repairs Wheel. Critical hit (Burn: +37). Acquired 42 matter. 7R-MNS: "Almost blasted you there, haha, but you're not one of the Unaware, I see. I'm not one to ask for help, but would never refuse company on my journey of destruction." 7R-MNS: "Let's ascend to another depth, shall we? Try to keep up." Terrain Scanner destroyed. Critical hit (Burn: +37). Lgt. Treads destroyed. Lgt. Assault Rifle destroyed. Imp. Heat Sink destroyed. Minigun destroyed. Hcp. Matter Pod destroyed. Critical hit (Burn: +37). G-47 Trooper suffers critical hit (Burn). Aluminum Leg destroyed. Critical hit (Burn: +37). Map ----- +----------------------------------------------------+ | ?????????????????????????????????????????????????? | | ?????????????????????????????????????????????????? | | ?????????????????????????????????????????????????? | | ?????????????????????????????????????????????????? | | ?????????????????????????????????????????????????? | | ?????????????????????????????????????????????????? | | ?????????????????????????????????????????????????? | | ?????????????????????????????????????????????????? | | ?????????????????????????????????????????????????? | | ?????????????????????????????????????????????????? | | ???????????????? ???????????????????????????????? | | ???????????????? ??????????????????????????????? | | ???????????????? ??????????????????????????????? | | ??????????????#? ???????????#??????????????????? | | ??#?????????????# #????? ???? #??????????????????? | | ???? ?#????#???#?#?#??"????? #??????????????????? | | ??#???########### #?#? ????? #??????????????????? | | ??? ? """ #?#??????? #??????????????????? | | ??? "T" #???? ??? +??????????????????? | | ??? ? #?##????# #??????????????????? | | #?###### #???????? #??????????????????? | | # #?#### t ######### #??????????????????? | | #??##??# """ #??????????????????? | | # #?##?# "" " Y u ########???????????? | | # ###### " g g u ua ????????? | | #+###### "" g @ ????????? | | ### k######### ????????? | | """ + ##????????##+######+???????????? | | """ ### ?###??##???#????????????????????? | | """ # # ###???#?#??????????????????????? | | # # #?#?##???#??????????????+??????? | | # # == ###?####?##????????????????????? | | ####### == ! #????##?###????????????????????? | | % = ###?#?#?##?????????????????????? | | % ##?#??##???????????????????????? | | ####????#??????????????????????? | | ########### #####?#????#???????????????????????? | | ####?###### ##?##?#?####???????????????????????? | | #######?### #####??#?#??#??????????????????????? | | #####??#### # ?? ??#??????????????????????????? | | #######?### # ? ##??????????????????????????? | | #?##??##### #?? ???????????????????????????????? | | ## ? ?? ?# # "????#???????????????????????????? | | ## ?""?# #???"??????????????????????????????? | | #?????"""?# #???? ?????????????????????????????? | | ??????????# ##??#??????????????????????????????? | | ??????????? ???????????????????????????????????? | | ?#???????????????????????????????????????????????? | | ?????????????????????????????????????????????????? | | ?????????????????????????????????????????????????? | +----------------------------------------------------+ Best States ------------- Heat Dissipation 45 Energy Generation 10 Energy Capacity 250 Matter Stores 500 Matter Capacity 500 Sight Range 16 Robot Scan Range 14 Terrain Scan Range 14 Terrain Scan Density 85 Evasion (%) 55 Recoil Reduction 2 Item Schematics ----------------- None Robot Schematics ------------------ None Fabricated ------------ Nothing Alien Tech Used ----------------- None Achievements -------------- Tourist Challenges ------------ None Game ------ Seed EnhancedDefenseShield Manual? 0 Play Time 00:33:39 Cumulative 3.9 hours Start 2024.11.14 @ 11:09:28 End 2024.11.14 @ 11:44:50 Sessions 1 Manual Loads 0 Difficulty Rogue Special Mode None Game No. 7 Rogue 4 Adventurer 3 Explorer 0 Win Type - Total 0 Types 0/0/0/0/0/0/0/0/0 Lore% 3 Gallery% 9 Achievement% 9 Wizard Run 0 Options --------- Layout 1 ASCII 0 Keyboard 0 Movement Vi Keybinds 0 Fullscreen 1 Font 24/Smallcaps Map View 50x35 Zoom Use 0% Tactical HUD 0 Map Filters NONE Filters NONE Steam 1 RUN: 9090fbc5-0808-4421-b2da-991ebcfc1c06